[Event "NOR-chT 2018"]
[Site "Bergen"]
[Date "2018.05.12"]
[Round "4"]
[White "Lindbol, Aleksander"]
[Black "Haug, Johannes"]
[Result "0-1"]
[ECO "A20"]
[WhiteElo "2136"]
[BlackElo "2387"]
[Annotator "NA"]
[PlyCount "58"]
[EventDate "2018.??.??"]
[EventCountry "NOR"]
[SourceTitle "playchess.com"]
[Source "ChessBase"]
[SourceQuality "1"]
[TimeControl "40/5400:1800"]

1. c4 {[%emt 0:00:02]} e5 {[%emt 0:01:01]} 2. g3 {[%emt 0:00:10]} c6 {[%emt 0:00:06]} 3. d4 {[%emt 0:00:07]} e4 {[%emt 0:00:03] A20: English Opening: 1...e5} 4. d5 {[%emt 0:00:06]} Bb4+ {[%emt 0:00:33]} 5. Bd2 {[%emt 0:00:06]} Qe7 {[%emt 0:00:05]} 6. Nc3 {[%emt 0:00:03]} Nf6 {[%emt 0:01:20]} 7. Bg2 {[%emt 0:00:17]} O-O {[%emt 0:00:40]} 8. Nh3 {[%emt 0:01:31]} cxd5 {[%emt 0:00:23]} 9. cxd5 {[%emt 0:02:51]} d6 {[%emt 0:00:47]} 10. O-O {[%emt 0:01:29]} Bf5 {[%emt 0:05:37]} 11. Kh1 $146 {[%emt 0:14:44]} ({Predecessor:} 11. a3 Bc5 12. Bg5 Nbd7 {0-1 (56) Von Bahr,O (2379)-Palac,M (2576) Split 2015}) 11... Nbd7 {[%emt 0:06:01]} 12. Rc1 {[%emt 0:01:47]} a6 {[%emt 0:07:55]} 13. Be3 {[%emt 0:06:49]} h6 {[%emt 0:12:54]} 14. Bd4 {[%emt 0:04:53]} Ne5 {[%emt 0:10:39]} ({Black should play} 14... Rac8 $17) 15. a3 {[%emt 0:07:11]} (15. f4 $11 {keeps the balance.} Neg4 16. Nf2) 15... Bc5 {[%emt 0:03:56]} (15... Bxc3 $1 $17 16. Bxc3 Rac8) 16. Na4 {[%emt 0:02:22]} (16. Bxc5 $15 dxc5 17. Nf4) 16... Bxd4 {[%emt 0:01:22]} 17. Qxd4 {[%emt 0:00:09]} b5 {[%emt 0:01:15]} 18. Nc3 {[%emt 0:03:56]} Rfc8 {[%emt 0:01:04]} 19. b3 {[%emt 0:04:35] [#]} (19. Nf4 $17) 19... Rc5 $1 {[%emt 0:01:49]} 20. Qd2 {[%emt 0:10:56]} Rac8 {[%emt 0:03:58]} 21. Rfd1 {[%emt 0:06:32]} Qc7 {[%emt 0:06:38]} 22. Na2 {[%emt 0:02:44]} Qb7 {[%emt 0:00:54]} 23. Nf4 {[%emt 0:04:54]} g5 {[%emt 0:06:51]} 24. Nh3 {[%emt 0:00:36]} Rxc1 {[%emt 0:02:20]} 25. Rxc1 {[%emt 0:00:10]} Rxc1+ 26. Qxc1 {[%emt 0:01:40]} Qxd5 $19 {[%emt 0:02:14]} 27. Nc3 {[%emt 0:05:32]} Qxb3 {[%emt 0:01:13]} 28. Nxg5 {[%emt 0:00:22]} hxg5 {[%emt 0:00:50]} 29. Qxg5+ {[%emt 0:00:10]} Bg6 {[%emt 0:00:30]} 0-1